[Event "Titled Tuesday Blitz July 4 Late 2023"]
[White "Liu, Casper"]
[Black "Sokolov, Andrei"]
[WhiteFideId "1454153"]
[BlackFideId "11600306"]
[WhiteElo "2492"]
[BlackElo "2273"]
[Result "1-0"]
[Round "3"]
[TimeControl "180+2"]
[Date "2023.07.04"]
[WhiteClock "0:01:27"]
[BlackClock "0:00:02"]
[Board "159"]

1. b4 {[%clk 0:03:00]}  d5 {[%clk 0:02:57]} 2. Bb2 {[%clk 0:03:01]}  Bf5 {[%clk 0:02:58]} 3. Nf3 {[%clk 0:03:00]}  e6 {[%clk 0:02:58]} 4. a3 {[%clk 0:03:00]}  c6 {[%clk 0:02:59]} 5. g3 {[%clk 0:03:00]}  Bd6 {[%clk 0:02:59]} 6. Bg2 {[%clk 0:03:00]}  Nf6 {[%clk 0:02:57]} 7. O-O {[%clk 0:03:01]}  O-O {[%clk 0:02:57]} 8. d3 {[%clk 0:02:59]}  Nbd7 {[%clk 0:02:56]} 9. Nbd2 {[%clk 0:03:00]}  Re8 {[%clk 0:02:54]} 10. Re1 {[%clk 0:03:00]}  Bg6 {[%clk 0:02:54]} 11. c4 {[%clk 0:02:57]}  e5 {[%clk 0:02:36]} 12. cxd5 {[%clk 0:02:57]}  cxd5 {[%clk 0:02:36]} 13. Qb3 {[%clk 0:02:58]}  e4 {[%clk 0:02:32]} 14. dxe4 {[%clk 0:02:58]}  dxe4 {[%clk 0:02:31]} 15. Nh4 {[%clk 0:02:56]}  Rc8 {[%clk 0:02:14]} 16. Rad1 {[%clk 0:02:56]}  Be5 {[%clk 0:01:47]} 17. Bxe5 {[%clk 0:02:38]}  Rxe5 {[%clk 0:01:46]} 18. Nc4 {[%clk 0:02:38]}  Re6 {[%clk 0:01:37]} 19. Bh3 {[%clk 0:02:37]}  Re7 {[%clk 0:01:35]} 20. Nd6 {[%clk 0:02:31]}  Rc7 {[%clk 0:01:32]} 21. Rd4 {[%clk 0:02:11]}  Qb8 {[%clk 0:01:19]} 22. Red1 {[%clk 0:02:07]}  Nf8 {[%clk 0:01:12]} 23. Nb5 {[%clk 0:02:04]}  Rc6 {[%clk 0:01:07]} 24. Rd8 {[%clk 0:02:04]}  Qe5 {[%clk 0:01:04]} 25. Nxa7 {[%clk 0:02:02]}  Ra6 {[%clk 0:01:02]} 26. Nc8 {[%clk 0:02:01]}  Rc7 {[%clk 0:01:00]} 27. b5 {[%clk 0:01:52]}  Ra5 {[%clk 0:00:51]} 28. Qb4 {[%clk 0:01:48]}  Ne8 {[%clk 0:00:37]} 29. Qxa5 {[%clk 0:01:42]}  Rc5 {[%clk 0:00:34]} 30. Qb4 {[%clk 0:01:34]}  Rxb5 {[%clk 0:00:30]} 31. Rxe8 {[%clk 0:01:33]}  Qxe8 {[%clk 0:00:28]} 32. Ne7+ {[%clk 0:01:30]}  Kh8 {[%clk 0:00:25]} 33. Qd6 {[%clk 0:01:27]}  Rb2 {[%clk 0:00:18]} 34. Qd8 {[%clk 0:01:24]}  Qxd8 {[%clk 0:00:02]} 35. Rxd8 {[%clk 0:01:25]}  h6 {[%clk 0:00:01]} 36. Rxf8+ {[%clk 0:01:25]}  Kh7 {[%clk 0:00:02]} 37. Nhxg6 {[%clk 0:01:24]}  fxg6 {[%clk 0:00:02]} 38. Be6 {[%clk 0:01:25]}  g5 {[%clk 0:00:01]} 39. Bg8+ {[%clk 0:01:25]}  Kh8 {[%clk 0:00:02]} 40. Bf7+ {[%clk 0:01:26]}  Kh7 {[%clk 0:00:02]} 41. Bg6# {[%clk 0:01:27]} 1-0


[Site "https://www.chess.com"]

[Event "Titled Tuesday Blitz July 4 Late 2023"]
[White "Lopez Gracia, Fernando"]
[Black "Barwinska, Ewa"]
[WhiteFideId "2207184"]
[BlackFideId "21833761"]
[WhiteElo "2450"]
[BlackElo "2263"]
[Result "0-1"]
[Round "3"]
[TimeControl "180+2"]
[Date "2023.07.04"]
[WhiteClock "0:00:13"]
[BlackClock "0:00:05"]
[Board "161"]

1. e4 {[%clk 0:03:00]}  e6 {[%clk 0:02:58]} 2. d4 {[%clk 0:02:59]}  d5 {[%clk 0:02:59]} 3. Nd2 {[%clk 0:02:59]}  dxe4 {[%clk 0:02:50]} 4. Nxe4 {[%clk 0:03:00]}  Nd7 {[%clk 0:02:47]} 5. Bd3 {[%clk 0:02:53]}  Ngf6 {[%clk 0:02:40]} 6. Nf3 {[%clk 0:02:54]}  Nxe4 {[%clk 0:02:40]} 7. Bxe4 {[%clk 0:02:54]}  Nf6 {[%clk 0:02:40]} 8. Bd3 {[%clk 0:02:54]}  Be7 {[%clk 0:02:39]} 9. O-O {[%clk 0:02:53]}  Bd7 {[%clk 0:02:39]} 10. Ne5 {[%clk 0:02:51]}  O-O {[%clk 0:02:36]} 11. c3 {[%clk 0:02:49]}  c5 {[%clk 0:02:36]} 12. Nxd7 {[%clk 0:02:47]}  Qxd7 {[%clk 0:02:35]} 13. dxc5 {[%clk 0:02:46]}  Rfd8 {[%clk 0:02:29]} 14. Bc2 {[%clk 0:02:42]}  Bxc5 {[%clk 0:02:27]} 15. Qe2 {[%clk 0:02:43]}  Be7 {[%clk 0:02:19]} 16. Bf4 {[%clk 0:02:41]}  Qc6 {[%clk 0:02:16]} 17. Rad1 {[%clk 0:02:38]}  h6 {[%clk 0:02:14]} 18. h3 {[%clk 0:02:28]}  Rxd1 {[%clk 0:02:09]} 19. Rxd1 {[%clk 0:02:28]}  Nd5 {[%clk 0:02:09]} 20. Bc1 {[%clk 0:02:27]}  Rd8 {[%clk 0:02:05]} 21. Re1 {[%clk 0:02:26]}  Nf6 {[%clk 0:02:05]} 22. Rd1 {[%clk 0:02:24]}  Rxd1+ {[%clk 0:02:03]} 23. Qxd1 {[%clk 0:02:25]}  Qd6 {[%clk 0:02:03]} 24. Qxd6 {[%clk 0:02:24]}  Bxd6 {[%clk 0:02:04]} 25. Kf1 {[%clk 0:02:23]}  Kf8 {[%clk 0:02:03]} 26. Ke2 {[%clk 0:02:23]}  Ke7 {[%clk 0:02:04]} 27. Be3 {[%clk 0:02:23]}  b6 {[%clk 0:01:59]} 28. g3 {[%clk 0:02:21]}  Nd5 {[%clk 0:01:59]} 29. Bd2 {[%clk 0:02:20]}  e5 {[%clk 0:01:53]} 30. Bb3 {[%clk 0:02:20]}  Nc7 {[%clk 0:01:51]} 31. Kf3 {[%clk 0:02:17]}  f5 {[%clk 0:01:50]} 32. g4 {[%clk 0:02:13]}  e4+ {[%clk 0:01:44]} 33. Ke3 {[%clk 0:02:10]}  g6 {[%clk 0:01:43]} 34. Bc2 {[%clk 0:02:01]}  Kf6 {[%clk 0:01:27]} 35. Ke2 {[%clk 0:02:01]}  h5 {[%clk 0:01:20]} 36. gxh5 {[%clk 0:01:59]}  gxh5 {[%clk 0:01:21]} 37. f3 {[%clk 0:01:59]}  Ke5 {[%clk 0:01:15]} 38. Bh6 {[%clk 0:01:40]}  Ne6 {[%clk 0:01:07]} 39. fxe4 {[%clk 0:01:26]}  fxe4 {[%clk 0:01:07]} 40. b4 {[%clk 0:01:21]}  Nf4+ {[%clk 0:00:35]} 41. Ke3 {[%clk 0:01:21]}  Nd5+ {[%clk 0:00:33]} 42. Kd2 {[%clk 0:01:19]}  Kf5 {[%clk 0:00:21]} 43. a3 {[%clk 0:01:11]}  Bf4+ {[%clk 0:00:21]} 44. Bxf4 {[%clk 0:01:08]}  Kxf4 {[%clk 0:00:20]} 45. c4 {[%clk 0:01:06]}  e3+ {[%clk 0:00:15]} 46. Kd3 {[%clk 0:01:03]}  Ne7 {[%clk 0:00:13]} 47. Bd1 {[%clk 0:01:02]}  Nc6 {[%clk 0:00:12]} 48. Bxh5 {[%clk 0:01:01]}  Ne5+ {[%clk 0:00:13]} 49. Ke2 {[%clk 0:00:47]}  Nxc4 {[%clk 0:00:13]} 50. a4 {[%clk 0:00:45]}  Nb2 {[%clk 0:00:13]} 51. Be8 {[%clk 0:00:44]}  Nc4 {[%clk 0:00:12]} 52. Bb5 {[%clk 0:00:40]}  Nd6 {[%clk 0:00:12]} 53. Bd3 {[%clk 0:00:40]}  Nf7 {[%clk 0:00:11]} 54. h4 {[%clk 0:00:39]}  Nh6 {[%clk 0:00:11]} 55. h5 {[%clk 0:00:39]}  Ng4 {[%clk 0:00:09]} 56. Bb5 {[%clk 0:00:32]}  Nh6 {[%clk 0:00:08]} 57. Bd7 {[%clk 0:00:31]}  Ke4 {[%clk 0:00:09]} 58. Be6 {[%clk 0:00:30]}  Kf4 {[%clk 0:00:08]} 59. Bd5 {[%clk 0:00:24]}  Nf5 {[%clk 0:00:06]} 60. Bc4 {[%clk 0:00:19]}  Ng3+ {[%clk 0:00:06]} 61. Kd3 {[%clk 0:00:19]}  Nxh5 {[%clk 0:00:07]} 62. Bd5 {[%clk 0:00:19]}  Nf6 {[%clk 0:00:07]} 63. Bc4 {[%clk 0:00:18]}  Ng4 {[%clk 0:00:08]} 64. Kd4 {[%clk 0:00:18]}  Nf2 {[%clk 0:00:07]} 65. a5 {[%clk 0:00:18]}  bxa5 {[%clk 0:00:04]} 66. bxa5 {[%clk 0:00:19]}  Kf3 {[%clk 0:00:04]} 67. Kc5 {[%clk 0:00:17]}  Ne4+ {[%clk 0:00:04]} 68. Kb5 {[%clk 0:00:16]}  Nd6+ {[%clk 0:00:04]} 69. Ka6 {[%clk 0:00:14]}  Nxc4 {[%clk 0:00:05]} 70. Kxa7 {[%clk 0:00:15]}  Nxa5 {[%clk 0:00:05]} 71. Kb8 {[%clk 0:00:13]}  Nc4 {[%clk 0:00:05]} 0-1


[Site "https://www.chess.com"]

[Event "Titled Tuesday Blitz July 4 Late 2023"]
[White "Guimaraes, Wagner Peixoto"]
[Black "Nunez V, Gustavo Eduardo"]
[WhiteFideId "2100940"]
[BlackFideId "4403690"]
[WhiteElo "2262"]
[BlackElo "2450"]
[Result "0-1"]
[Round "3"]
[TimeControl "180+2"]
[Date "2023.07.04"]
[WhiteClock "0:00:01"]
[BlackClock "0:00:58"]
[Board "162"]

1. e4 {[%clk 0:02:59]}  c5 {[%clk 0:02:59]} 2. Nf3 {[%clk 0:02:59]}  Nc6 {[%clk 0:02:58]} 3. d4 {[%clk 0:02:58]}  cxd4 {[%clk 0:02:59]} 4. Nxd4 {[%clk 0:02:59]}  e5 {[%clk 0:02:58]} 5. Nb5 {[%clk 0:02:58]}  a6 {[%clk 0:02:58]} 6. Nd6+ {[%clk 0:02:58]}  Bxd6 {[%clk 0:02:59]} 7. Qxd6 {[%clk 0:02:58]}  Qf6 {[%clk 0:03:00]} 8. Qd1 {[%clk 0:02:47]}  Qg6 {[%clk 0:02:59]} 9. Nc3 {[%clk 0:02:47]}  Nge7 {[%clk 0:02:59]} 10. h4 {[%clk 0:02:46]}  h5 {[%clk 0:02:59]} 11. Be3 {[%clk 0:02:38]}  d5 {[%clk 0:02:41]} 12. exd5 {[%clk 0:02:28]}  Nb4 {[%clk 0:02:39]} 13. Bd3 {[%clk 0:02:08]}  Nxd3+ {[%clk 0:02:26]} 14. Qxd3 {[%clk 0:02:09]}  Qxg2 {[%clk 0:02:26]} 15. O-O-O {[%clk 0:02:07]}  Bf5 {[%clk 0:02:26]} 16. Qc4 {[%clk 0:01:59]}  Rc8 {[%clk 0:02:24]} 17. Qa4+ {[%clk 0:01:59]}  Bd7 {[%clk 0:02:23]} 18. Qe4 {[%clk 0:01:57]}  Qxe4 {[%clk 0:02:19]} 19. Nxe4 {[%clk 0:01:58]}  O-O {[%clk 0:02:12]} 20. Nc5 {[%clk 0:01:43]}  Bg4 {[%clk 0:02:09]} 21. d6 {[%clk 0:01:36]}  Nf5 {[%clk 0:02:03]} 22. d7 {[%clk 0:01:27]}  Rb8 {[%clk 0:02:00]} 23. Rd2 {[%clk 0:01:14]}  Nxe3 {[%clk 0:01:50]} 24. fxe3 {[%clk 0:01:14]}  Rfd8 {[%clk 0:01:49]} 25. Re1 {[%clk 0:00:43]}  b6 {[%clk 0:01:49]} 26. Nxa6 {[%clk 0:00:43]}  Rb7 {[%clk 0:01:49]} 27. Rd5 {[%clk 0:00:36]}  Rbxd7 {[%clk 0:01:43]} 28. Rxd7 {[%clk 0:00:36]}  Rxd7 {[%clk 0:01:44]} 29. Nb4 {[%clk 0:00:33]}  f6 {[%clk 0:01:39]} 30. b3 {[%clk 0:00:33]}  g5 {[%clk 0:01:37]} 31. hxg5 {[%clk 0:00:31]}  fxg5 {[%clk 0:01:38]} 32. c4 {[%clk 0:00:31]}  Kg7 {[%clk 0:01:35]} 33. Nd5 {[%clk 0:00:31]}  b5 {[%clk 0:01:32]} 34. Kb2 {[%clk 0:00:29]}  Be6 {[%clk 0:01:29]} 35. Nb6 {[%clk 0:00:22]}  Rd2+ {[%clk 0:01:27]} 36. Kc3 {[%clk 0:00:23]}  Rxa2 {[%clk 0:01:27]} 37. cxb5 {[%clk 0:00:21]}  h4 {[%clk 0:01:23]} 38. Nc4 {[%clk 0:00:20]}  h3 {[%clk 0:01:17]} 39. b6 {[%clk 0:00:16]}  Bd5 {[%clk 0:01:03]} 40. Rd1 {[%clk 0:00:11]}  Bf3 {[%clk 0:01:03]} 41. Rf1 {[%clk 0:00:09]}  h2 {[%clk 0:01:00]} 42. Nxe5 {[%clk 0:00:06]}  h1=Q {[%clk 0:00:58]} 43. Rxh1 {[%clk 0:00:01]}  Bxh1 {[%clk 0:00:58]} 0-1


[Site "https://www.chess.com"]

[Event "Titled Tuesday Blitz July 4 Late 2023"]
[White "Uzcategui Rodriguez, Alejandro"]
[Black "Kohler, Aran"]
[WhiteFideId "3903400"]
[BlackFideId "1002856"]
[WhiteElo "2443"]
[BlackElo "2255"]
[Result "1-0"]
[Round "3"]
[TimeControl "180+2"]
[Date "2023.07.04"]
[WhiteClock "0:00:53"]
[BlackClock "0:00:26"]
[Board "164"]

1. e4 {[%clk 0:02:57]}  c6 {[%clk 0:02:57]} 2. d4 {[%clk 0:02:56]}  d5 {[%clk 0:02:58]} 3. exd5 {[%clk 0:02:57]}  cxd5 {[%clk 0:02:57]} 4. Bd3 {[%clk 0:02:58]}  a6 {[%clk 0:02:57]} 5. c3 {[%clk 0:02:59]}  Nc6 {[%clk 0:02:57]} 6. Bf4 {[%clk 0:02:58]}  Nf6 {[%clk 0:02:58]} 7. h3 {[%clk 0:02:58]}  g6 {[%clk 0:02:56]} 8. Nf3 {[%clk 0:02:58]}  Bg7 {[%clk 0:02:56]} 9. O-O {[%clk 0:02:58]}  O-O {[%clk 0:02:56]} 10. Na3 {[%clk 0:02:57]}  Ne4 {[%clk 0:02:52]} 11. Bxe4 {[%clk 0:02:53]}  dxe4 {[%clk 0:02:51]} 12. Nd2 {[%clk 0:02:54]}  f5 {[%clk 0:02:50]} 13. Nac4 {[%clk 0:02:54]}  b5 {[%clk 0:02:46]} 14. Ne3 {[%clk 0:02:54]}  e5 {[%clk 0:02:42]} 15. dxe5 {[%clk 0:02:52]}  Nxe5 {[%clk 0:02:43]} 16. Bxe5 {[%clk 0:02:46]}  Bxe5 {[%clk 0:02:41]} 17. a4 {[%clk 0:02:47]}  b4 {[%clk 0:02:39]} 18. Qb3+ {[%clk 0:02:42]}  Kh8 {[%clk 0:02:40]} 19. Qxb4 {[%clk 0:02:42]}  Rb8 {[%clk 0:02:31]} 20. Qc5 {[%clk 0:02:38]}  Bg7 {[%clk 0:02:17]} 21. Rad1 {[%clk 0:02:32]}  Qh4 {[%clk 0:01:59]} 22. Qd6 {[%clk 0:01:39]}  Bb7 {[%clk 0:01:55]} 23. Ndc4 {[%clk 0:01:34]}  f4 {[%clk 0:01:51]} 24. Ng4 {[%clk 0:01:34]}  h5 {[%clk 0:01:27]} 25. Nge5 {[%clk 0:01:31]}  Rf6 {[%clk 0:01:01]} 26. Nxg6+ {[%clk 0:01:31]}  Rxg6 {[%clk 0:01:02]} 27. Qxg6 {[%clk 0:01:31]}  Rg8 {[%clk 0:00:53]} 28. Ne5 {[%clk 0:01:26]}  Rf8 {[%clk 0:00:36]} 29. Rd7 {[%clk 0:00:56]}  Qf6 {[%clk 0:00:26]} 30. Qxf6 {[%clk 0:00:53]} 1-0


[Site "https://www.chess.com"]

[Event "Titled Tuesday Blitz July 4 Late 2023"]
[White "Sukandar, Irine Kharisma"]
[Black "Mendez Machado, Andre"]
[WhiteFideId "7101937"]
[BlackFideId "6603793"]
[WhiteElo "2424"]
[BlackElo "2234"]
[Result "0-1"]
[Round "3"]
[TimeControl "180+2"]
[Date "2023.07.04"]
[WhiteClock "0:00:00"]
[BlackClock "0:00:02"]
[Board "166"]

1. d4 {[%clk 0:03:00]}  Nf6 {[%clk 0:02:56]} 2. Bf4 {[%clk 0:03:00]}  d5 {[%clk 0:02:56]} 3. e3 {[%clk 0:02:59]}  e6 {[%clk 0:02:57]} 4. Nd2 {[%clk 0:02:58]}  Bd6 {[%clk 0:02:57]} 5. Ngf3 {[%clk 0:02:56]}  O-O {[%clk 0:02:56]} 6. Bd3 {[%clk 0:02:50]}  c5 {[%clk 0:02:57]} 7. dxc5 {[%clk 0:02:48]}  Bxc5 {[%clk 0:02:52]} 8. O-O {[%clk 0:02:48]}  Re8 {[%clk 0:02:49]} 9. c4 {[%clk 0:02:46]}  Nc6 {[%clk 0:02:47]} 10. Bg3 {[%clk 0:02:21]}  d4 {[%clk 0:02:24]} 11. exd4 {[%clk 0:02:18]}  Nxd4 {[%clk 0:02:24]} 12. Nxd4 {[%clk 0:02:17]}  Bxd4 {[%clk 0:02:24]} 13. Qc2 {[%clk 0:02:09]}  b6 {[%clk 0:01:33]} 14. Rad1 {[%clk 0:01:58]}  Bb7 {[%clk 0:01:27]} 15. Nb3 {[%clk 0:01:52]}  e5 {[%clk 0:01:25]} 16. Rfe1 {[%clk 0:01:35]}  Kh8 {[%clk 0:01:12]} 17. Nxd4 {[%clk 0:01:25]}  exd4 {[%clk 0:01:02]} 18. Be5 {[%clk 0:01:24]}  Ng4 {[%clk 0:00:53]} 19. Bg3 {[%clk 0:01:11]}  Qf6 {[%clk 0:00:53]} 20. h3 {[%clk 0:01:09]}  Qc6 {[%clk 0:00:49]} 21. Bf1 {[%clk 0:01:06]}  Nf6 {[%clk 0:00:30]} 22. Rxe8+ {[%clk 0:01:04]}  Rxe8 {[%clk 0:00:29]} 23. Rxd4 {[%clk 0:01:04]}  Re1 {[%clk 0:00:21]} 24. Rd8+ {[%clk 0:01:00]}  Ne8 {[%clk 0:00:22]} 25. Rd5 {[%clk 0:00:45]}  Nf6 {[%clk 0:00:08]} 26. Rd8+ {[%clk 0:00:32]}  Ne8 {[%clk 0:00:08]} 27. f3 {[%clk 0:00:26]}  Re7 {[%clk 0:00:06]} 28. Qf2 {[%clk 0:00:16]}  h6 {[%clk 0:00:05]} 29. Bh4 {[%clk 0:00:16]}  Re6 {[%clk 0:00:05]} 30. b4 {[%clk 0:00:12]}  Qc7 {[%clk 0:00:04]} 31. Rd1 {[%clk 0:00:05]}  Kh7 {[%clk 0:00:04]} 32. Bd3+ {[%clk 0:00:04]}  g6 {[%clk 0:00:04]} 33. c5 {[%clk 0:00:03]}  b5 {[%clk 0:00:03]} 34. Bxb5 {[%clk 0:00:02]}  Ng7 {[%clk 0:00:03]} 35. Bg3 {[%clk 0:00:02]}  Qc8 {[%clk 0:00:03]} 36. Bd7 {[%clk 0:00:00]}  Qd8 {[%clk 0:00:02]} 0-1


[Site "https://www.chess.com"]

[Event "Titled Tuesday Blitz July 4 Late 2023"]
[White "Urbina Perez, Juan Antonio"]
[Black "Thiel, Thomas"]
[WhiteFideId "2217368"]
[BlackFideId "4615964"]
[WhiteElo "2400"]
[BlackElo "2211"]
[Result "1-0"]
[Round "3"]
[TimeControl "180+2"]
[Date "2023.07.04"]
[WhiteClock "0:01:02"]
[BlackClock "0:00:29"]
[Board "168"]

1. e4 {[%clk 0:03:00]}  d5 {[%clk 0:02:59]} 2. exd5 {[%clk 0:03:00]}  Nf6 {[%clk 0:02:59]} 3. d4 {[%clk 0:02:58]}  Nxd5 {[%clk 0:02:58]} 4. c4 {[%clk 0:02:59]}  Nb6 {[%clk 0:02:57]} 5. c5 {[%clk 0:02:59]}  Nd5 {[%clk 0:02:55]} 6. Nc3 {[%clk 0:02:59]}  g6 {[%clk 0:02:54]} 7. Bc4 {[%clk 0:02:58]}  Nxc3 {[%clk 0:02:54]} 8. bxc3 {[%clk 0:02:57]}  Bg7 {[%clk 0:02:54]} 9. Nf3 {[%clk 0:02:56]}  O-O {[%clk 0:02:54]} 10. O-O {[%clk 0:02:54]}  Nc6 {[%clk 0:02:54]} 11. h3 {[%clk 0:02:55]}  Na5 {[%clk 0:02:51]} 12. Bd3 {[%clk 0:02:49]}  b6 {[%clk 0:02:51]} 13. cxb6 {[%clk 0:02:47]}  axb6 {[%clk 0:02:49]} 14. Re1 {[%clk 0:02:47]}  Ba6 {[%clk 0:02:47]} 15. Bxa6 {[%clk 0:02:40]}  Rxa6 {[%clk 0:02:48]} 16. Qe2 {[%clk 0:02:40]}  Qa8 {[%clk 0:02:19]} 17. Qxe7 {[%clk 0:02:34]}  Ra7 {[%clk 0:02:17]} 18. Bg5 {[%clk 0:02:26]}  Nc6 {[%clk 0:02:09]} 19. Qe4 {[%clk 0:02:17]}  h6 {[%clk 0:01:55]} 20. Bf4 {[%clk 0:02:11]}  Na5 {[%clk 0:01:50]} 21. Qe3 {[%clk 0:01:52]}  Nc4 {[%clk 0:01:44]} 22. Qc1 {[%clk 0:01:52]}  b5 {[%clk 0:01:43]} 23. Bxh6 {[%clk 0:01:50]}  Rxa2 {[%clk 0:01:40]} 24. Rxa2 {[%clk 0:01:50]}  Qxa2 {[%clk 0:01:37]} 25. Bxg7 {[%clk 0:01:50]}  Kxg7 {[%clk 0:01:36]} 26. Qf4 {[%clk 0:01:49]}  Qc2 {[%clk 0:01:23]} 27. Qxc7 {[%clk 0:01:25]}  Qxc3 {[%clk 0:01:22]} 28. Kh2 {[%clk 0:01:16]}  b4 {[%clk 0:01:21]} 29. Re7 {[%clk 0:01:03]}  b3 {[%clk 0:00:29]} 30. Ne5 {[%clk 0:01:02]} 1-0


[Site "https://www.chess.com"]

[Event "Titled Tuesday Blitz July 4 Late 2023"]
[White "Arnold, Ken"]
[Black "Cueto, Jonny"]
[WhiteFideId "2056836"]
[BlackFideId "3300145"]
[WhiteElo "2397"]
[BlackElo "2191"]
[Result "1-0"]
[Round "3"]
[TimeControl "180+2"]
[Date "2023.07.04"]
[WhiteClock "0:01:34"]
[BlackClock "0:00:00"]
[Board "170"]

1. e4 {[%clk 0:03:00]}  e6 {[%clk 0:03:00]} 2. Nf3 {[%clk 0:03:00]}  d5 {[%clk 0:03:01]} 3. Nc3 {[%clk 0:03:01]}  Nf6 {[%clk 0:03:01]} 4. exd5 {[%clk 0:03:00]}  exd5 {[%clk 0:03:01]} 5. d4 {[%clk 0:02:58]}  h6 {[%clk 0:02:59]} 6. Bd3 {[%clk 0:02:54]}  Bd6 {[%clk 0:02:59]} 7. h3 {[%clk 0:02:53]}  O-O {[%clk 0:02:59]} 8. O-O {[%clk 0:02:53]}  Nc6 {[%clk 0:03:00]} 9. Be3 {[%clk 0:02:49]}  Re8 {[%clk 0:02:59]} 10. Re1 {[%clk 0:02:48]}  Ne7 {[%clk 0:02:59]} 11. Nb5 {[%clk 0:02:46]}  Bb4 {[%clk 0:02:54]} 12. c3 {[%clk 0:02:46]}  Ba5 {[%clk 0:02:55]} 13. b4 {[%clk 0:02:45]}  Bb6 {[%clk 0:02:55]} 14. a4 {[%clk 0:02:45]}  c6 {[%clk 0:02:55]} 15. a5 {[%clk 0:02:40]}  cxb5 {[%clk 0:02:55]} 16. axb6 {[%clk 0:02:39]}  Qxb6 {[%clk 0:02:55]} 17. Ne5 {[%clk 0:02:37]}  Bf5 {[%clk 0:02:50]} 18. Bf1 {[%clk 0:02:25]}  Ng6 {[%clk 0:02:51]} 19. g4 {[%clk 0:02:08]}  Nxe5 {[%clk 0:02:44]} 20. dxe5 {[%clk 0:02:06]}  Qc7 {[%clk 0:02:22]} 21. exf6 {[%clk 0:02:05]}  Bg6 {[%clk 0:02:20]} 22. Bd4 {[%clk 0:02:00]}  a6 {[%clk 0:01:54]} 23. Qd2 {[%clk 0:01:55]}  Qd7 {[%clk 0:01:51]} 24. fxg7 {[%clk 0:01:52]}  f5 {[%clk 0:01:51]} 25. Qxh6 {[%clk 0:01:51]}  Bh7 {[%clk 0:01:50]} 26. g5 {[%clk 0:01:47]}  Qf7 {[%clk 0:01:43]} 27. h4 {[%clk 0:01:45]}  f4 {[%clk 0:01:40]} 28. h5 {[%clk 0:01:42]}  Qf5 {[%clk 0:01:40]} 29. g6 {[%clk 0:01:36]}  Qg4+ {[%clk 0:01:40]} 30. Bg2 {[%clk 0:01:35]}  Bxg6 {[%clk 0:00:00]} 31. hxg6 {[%clk 0:01:34]} 1-0


[Site "https://www.chess.com"]

[Event "Titled Tuesday Blitz July 4 Late 2023"]
[White "Janturin, Artur"]
[Black "Djordjevic, Dejan N"]
[WhiteFideId "4130022"]
[BlackFideId "913316"]
[WhiteElo "2396"]
[BlackElo "2172"]
[Result "1-0"]
[Round "3"]
[TimeControl "180+2"]
[Date "2023.07.04"]
[WhiteClock "0:00:48"]
[BlackClock "0:00:00"]
[Board "171"]

1. e4 {[%clk 0:03:00]}  c5 {[%clk 0:02:35]} 2. Nf3 {[%clk 0:02:59]}  Nc6 {[%clk 0:02:34]} 3. d4 {[%clk 0:02:59]}  cxd4 {[%clk 0:02:34]} 4. Nxd4 {[%clk 0:03:00]}  Nf6 {[%clk 0:02:35]} 5. Nc3 {[%clk 0:02:59]}  Qb6 {[%clk 0:02:35]} 6. Nb3 {[%clk 0:02:57]}  e6 {[%clk 0:02:35]} 7. Be3 {[%clk 0:02:55]}  Qc7 {[%clk 0:02:35]} 8. a3 {[%clk 0:02:51]}  a6 {[%clk 0:02:35]} 9. g4 {[%clk 0:02:47]}  d6 {[%clk 0:02:34]} 10. g5 {[%clk 0:02:46]}  Nd7 {[%clk 0:02:34]} 11. Bg2 {[%clk 0:02:46]}  b5 {[%clk 0:02:33]} 12. Qe2 {[%clk 0:02:44]}  Rb8 {[%clk 0:02:33]} 13. f4 {[%clk 0:02:43]}  Be7 {[%clk 0:02:33]} 14. h4 {[%clk 0:02:38]}  b4 {[%clk 0:02:15]} 15. axb4 {[%clk 0:02:24]}  Nxb4 {[%clk 0:02:15]} 16. O-O {[%clk 0:02:15]}  Nb6 {[%clk 0:02:10]} 17. Nd4 {[%clk 0:02:12]}  Nc4 {[%clk 0:02:07]} 18. Bc1 {[%clk 0:02:08]}  h6 {[%clk 0:02:00]} 19. b3 {[%clk 0:02:00]}  Nb6 {[%clk 0:01:52]} 20. Bb2 {[%clk 0:01:54]}  hxg5 {[%clk 0:01:51]} 21. hxg5 {[%clk 0:01:50]}  g6 {[%clk 0:01:38]} 22. Rae1 {[%clk 0:01:45]}  e5 {[%clk 0:01:36]} 23. Nd5 {[%clk 0:01:37]}  N6xd5 {[%clk 0:01:24]} 24. exd5 {[%clk 0:01:38]}  exd4 {[%clk 0:00:57]} 25. Bxd4 {[%clk 0:01:39]}  Rh7 {[%clk 0:00:47]} 26. Bf6 {[%clk 0:01:30]}  Rb7 {[%clk 0:00:46]} 27. Bxe7 {[%clk 0:01:24]}  Qxe7 {[%clk 0:00:46]} 28. Qc4 {[%clk 0:01:19]}  Bd7 {[%clk 0:00:35]} 29. Rxe7+ {[%clk 0:01:16]}  Kxe7 {[%clk 0:00:35]} 30. Re1+ {[%clk 0:01:09]}  Kd8 {[%clk 0:00:35]} 31. c3 {[%clk 0:00:58]}  Nc2 {[%clk 0:00:17]} 32. Rc1 {[%clk 0:00:58]}  Ne3 {[%clk 0:00:13]} 33. Qxa6 {[%clk 0:00:55]}  Bc8 {[%clk 0:00:11]} 34. Qxd6+ {[%clk 0:00:52]}  Rd7 {[%clk 0:00:00]} 35. Qb6+ {[%clk 0:00:48]} 1-0


[Site "https://www.chess.com"]

[Event "Titled Tuesday Blitz July 4 Late 2023"]
[White "Vila Dupla, Aurelio"]
[Black "Gombocz, Ferenc Jr."]
[WhiteFideId "2203383"]
[BlackFideId "775029"]
[WhiteElo "2159"]
[BlackElo "2380"]
[Result "0-1"]
[Round "3"]
[TimeControl "180+2"]
[Date "2023.07.04"]
[WhiteClock "0:01:03"]
[BlackClock "0:01:35"]
[Board "173"]

1. Nf3 {[%clk 0:03:00]}  d5 {[%clk 0:02:59]} 2. d4 {[%clk 0:03:00]}  Nf6 {[%clk 0:02:57]} 3. c4 {[%clk 0:03:00]}  c6 {[%clk 0:02:57]} 4. cxd5 {[%clk 0:02:59]}  cxd5 {[%clk 0:02:57]} 5. Nc3 {[%clk 0:03:00]}  a6 {[%clk 0:02:57]} 6. Bf4 {[%clk 0:03:00]}  Nc6 {[%clk 0:02:58]} 7. e3 {[%clk 0:03:00]}  Qb6 {[%clk 0:02:53]} 8. a3 {[%clk 0:02:52]}  Bf5 {[%clk 0:02:45]} 9. Na4 {[%clk 0:02:33]}  Qd8 {[%clk 0:02:41]} 10. Bd3 {[%clk 0:02:30]}  Bxd3 {[%clk 0:02:37]} 11. Qxd3 {[%clk 0:02:31]}  e6 {[%clk 0:02:35]} 12. O-O {[%clk 0:02:30]}  Bd6 {[%clk 0:02:34]} 13. Bxd6 {[%clk 0:02:29]}  Qxd6 {[%clk 0:02:35]} 14. b4 {[%clk 0:02:29]}  O-O {[%clk 0:02:35]} 15. Rfc1 {[%clk 0:02:24]}  Ne4 {[%clk 0:02:32]} 16. Nc5 {[%clk 0:02:15]}  Nxc5 {[%clk 0:02:30]} 17. bxc5 {[%clk 0:02:10]}  Qc7 {[%clk 0:02:27]} 18. Rcb1 {[%clk 0:02:06]}  Rab8 {[%clk 0:02:27]} 19. Rb6 {[%clk 0:02:05]}  e5 {[%clk 0:02:22]} 20. Qc3 {[%clk 0:01:56]}  e4 {[%clk 0:02:16]} 21. Nd2 {[%clk 0:01:51]}  f5 {[%clk 0:02:17]} 22. Qb3 {[%clk 0:01:34]}  Qf7 {[%clk 0:02:03]} 23. Rb1 {[%clk 0:01:32]}  Na5 {[%clk 0:01:44]} 24. Qb4 {[%clk 0:01:31]}  Nc4 {[%clk 0:01:45]} 25. Nxc4 {[%clk 0:01:30]}  dxc4 {[%clk 0:01:46]} 26. Rxb7 {[%clk 0:01:29]}  Rxb7 {[%clk 0:01:35]} 27. Qxb7 {[%clk 0:01:29]}  Qxb7 {[%clk 0:01:35]} 28. Rxb7 {[%clk 0:01:28]}  c3 {[%clk 0:01:36]} 29. Rb3 {[%clk 0:01:20]}  c2 {[%clk 0:01:35]} 30. Rc3 {[%clk 0:01:14]}  Rb8 {[%clk 0:01:34]} 31. g3 {[%clk 0:01:11]}  Rb1+ {[%clk 0:01:34]} 32. Kg2 {[%clk 0:01:11]}  c1=Q {[%clk 0:01:34]} 33. Rxc1 {[%clk 0:01:03]}  Rxc1 {[%clk 0:01:35]} 0-1


[Site "https://www.chess.com"]